[Event "Titled Tuesday Blitz August 15 Early 2023"]
[White "Zepeda Berlanga, Jan Enrique"]
[Black "Tikhonov, Viacheslav"]
[WhiteFideId "5132355"]
[BlackFideId "44196407"]
[WhiteElo "1964"]
[BlackElo "2516"]
[Result "0-1"]
[Round "1"]
[TimeControl "180+1"]
[Date "2023.08.15"]
[WhiteClock "0:00:23"]
[BlackClock "0:00:25"]
[Board "233"]

1. c4 {[%clk 0:03:00]}  e6 {[%clk 0:02:57]} 2. Nf3 {[%clk 0:02:58]}  d5 {[%clk 0:02:56]} 3. g3 {[%clk 0:02:54]}  Nf6 {[%clk 0:02:55]} 4. d4 {[%clk 0:02:51]}  Bb4+ {[%clk 0:02:54]} 5. Bd2 {[%clk 0:02:48]}  Be7 {[%clk 0:02:53]} 6. Nc3 {[%clk 0:02:44]}  dxc4 {[%clk 0:02:52]} 7. Bg2 {[%clk 0:02:39]}  b6 {[%clk 0:02:38]} 8. Ne5 {[%clk 0:02:31]}  Nd5 {[%clk 0:02:38]} 9. O-O {[%clk 0:02:25]}  Bb7 {[%clk 0:02:37]} 10. Qa4+ {[%clk 0:02:15]}  Kf8 {[%clk 0:02:22]} 11. Qxc4 {[%clk 0:02:06]}  c6 {[%clk 0:01:51]} 12. Rfd1 {[%clk 0:01:36]}  h5 {[%clk 0:01:45]} 13. h4 {[%clk 0:01:31]}  g6 {[%clk 0:01:43]} 14. a3 {[%clk 0:01:23]}  a5 {[%clk 0:01:40]} 15. Rac1 {[%clk 0:01:18]}  Kg7 {[%clk 0:01:39]} 16. Qd3 {[%clk 0:01:09]}  Nd7 {[%clk 0:01:32]} 17. Nxd5 {[%clk 0:01:06]}  Nxe5 {[%clk 0:01:24]} 18. dxe5 {[%clk 0:01:03]}  cxd5 {[%clk 0:01:24]} 19. e4 {[%clk 0:00:57]}  dxe4 {[%clk 0:01:10]} 20. Bxe4 {[%clk 0:00:57]}  Qxd3 {[%clk 0:01:11]} 21. Bxd3 {[%clk 0:00:57]}  Bf3 {[%clk 0:01:03]} 22. Re1 {[%clk 0:00:55]}  Rhd8 {[%clk 0:00:58]} 23. Rc3 {[%clk 0:00:47]}  Rac8 {[%clk 0:00:53]} 24. Rec1 {[%clk 0:00:43]}  Rxc3 {[%clk 0:00:50]} 25. Rxc3 {[%clk 0:00:42]}  Bc5 {[%clk 0:00:49]} 26. Bg5 {[%clk 0:00:40]}  Rd5 {[%clk 0:00:47]} 27. Bc4 {[%clk 0:00:38]}  Rd1+ {[%clk 0:00:45]} 28. Bf1 {[%clk 0:00:36]}  Be2 {[%clk 0:00:45]} 29. Rc1 {[%clk 0:00:34]}  Rxc1 {[%clk 0:00:40]} 30. Bxc1 {[%clk 0:00:35]}  Bxf1 {[%clk 0:00:38]} 31. Kxf1 {[%clk 0:00:35]}  Bd4 {[%clk 0:00:33]} 32. f4 {[%clk 0:00:35]}  a4 {[%clk 0:00:32]} 33. Ke2 {[%clk 0:00:34]}  b5 {[%clk 0:00:32]} 34. Kf3 {[%clk 0:00:30]}  Kf8 {[%clk 0:00:29]} 35. Ke4 {[%clk 0:00:30]}  Bf2 {[%clk 0:00:29]} 36. Kf3 {[%clk 0:00:30]}  Be1 {[%clk 0:00:19]} 37. Be3 {[%clk 0:00:28]}  Ke8 {[%clk 0:00:19]} 38. g4 {[%clk 0:00:26]}  Bxh4 {[%clk 0:00:16]} 39. gxh5 {[%clk 0:00:26]}  gxh5 {[%clk 0:00:17]} 40. Bc5 {[%clk 0:00:27]}  Bd8 {[%clk 0:00:16]} 41. Ke4 {[%clk 0:00:25]}  Kd7 {[%clk 0:00:16]} 42. f5 {[%clk 0:00:25]}  exf5+ {[%clk 0:00:16]} 43. Kxf5 {[%clk 0:00:25]}  Kc6 {[%clk 0:00:17]} 44. Bb4 {[%clk 0:00:24]}  Kd5 {[%clk 0:00:17]} 45. Bc3 {[%clk 0:00:24]}  h4 {[%clk 0:00:17]} 46. Kg4 {[%clk 0:00:21]}  Ke4 {[%clk 0:00:18]} 47. Kh3 {[%clk 0:00:20]}  Kf3 {[%clk 0:00:18]} 48. Kh2 {[%clk 0:00:20]}  Kg4 {[%clk 0:00:18]} 49. Bd4 {[%clk 0:00:18]}  Bc7 {[%clk 0:00:18]} 50. Bc3 {[%clk 0:00:19]}  Kf5 {[%clk 0:00:18]} 51. Kh3 {[%clk 0:00:19]}  Bxe5 {[%clk 0:00:19]} 52. Bxe5 {[%clk 0:00:18]}  Kxe5 {[%clk 0:00:20]} 53. Kxh4 {[%clk 0:00:19]}  f5 {[%clk 0:00:20]} 54. Kg3 {[%clk 0:00:20]}  Ke4 {[%clk 0:00:21]} 55. Kf2 {[%clk 0:00:20]}  Kf4 {[%clk 0:00:21]} 56. Ke2 {[%clk 0:00:21]}  Kg3 {[%clk 0:00:22]} 57. Kf1 {[%clk 0:00:20]}  Kf3 {[%clk 0:00:22]} 58. Kg1 {[%clk 0:00:21]}  Ke2 {[%clk 0:00:22]} 59. Kg2 {[%clk 0:00:21]}  f4 {[%clk 0:00:23]} 60. Kh1 {[%clk 0:00:21]}  f3 {[%clk 0:00:23]} 61. Kh2 {[%clk 0:00:22]}  f2 {[%clk 0:00:24]} 62. b3 {[%clk 0:00:23]}  f1=Q {[%clk 0:00:25]} 0-1


[Site "https://www.chess.com"]

[Event "Titled Tuesday Blitz August 15 Early 2023"]
[White "Rengifo Blancas, Renzo Jhonathan"]
[Black "Da Paz, Leonardo Gadelha"]
[WhiteFideId "3807185"]
[BlackFideId "2109743"]
[WhiteElo "2511"]
[BlackElo "1847"]
[Result "0-1"]
[Round "1"]
[TimeControl "180+1"]
[Date "2023.08.15"]
[WhiteClock "0:02:37"]
[BlackClock "0:01:29"]
[Board "236"]

1. e4 {[%clk 0:03:00]}  c5 {[%clk 0:02:59]} 2. c3 {[%clk 0:03:00]}  e6 {[%clk 0:02:58]} 3. d4 {[%clk 0:03:00]}  d5 {[%clk 0:02:57]} 4. exd5 {[%clk 0:03:01]}  exd5 {[%clk 0:02:55]} 5. Bb5+ {[%clk 0:03:02]}  Bd7 {[%clk 0:02:54]} 6. Bxd7+ {[%clk 0:03:01]}  Qxd7 {[%clk 0:02:52]} 7. Nf3 {[%clk 0:03:02]}  Nc6 {[%clk 0:02:48]} 8. O-O {[%clk 0:03:03]}  Nf6 {[%clk 0:02:45]} 9. Re1+ {[%clk 0:03:03]}  Be7 {[%clk 0:02:44]} 10. Ne5 {[%clk 0:03:03]}  Nxe5 {[%clk 0:02:40]} 11. dxe5 {[%clk 0:03:04]}  Ne4 {[%clk 0:02:34]} 12. Nd2 {[%clk 0:03:04]}  Nxd2 {[%clk 0:02:33]} 13. Bxd2 {[%clk 0:03:04]}  O-O {[%clk 0:02:33]} 14. Qf3 {[%clk 0:03:04]}  Rad8 {[%clk 0:02:26]} 15. Rad1 {[%clk 0:03:04]}  Qe6 {[%clk 0:02:25]} 16. h4 {[%clk 0:03:00]}  Bxh4 {[%clk 0:02:21]} 17. g3 {[%clk 0:02:59]}  Be7 {[%clk 0:02:20]} 18. Kg2 {[%clk 0:02:59]}  h6 {[%clk 0:02:16]} 19. Qh5 {[%clk 0:02:57]}  Qg6 {[%clk 0:02:14]} 20. Qf3 {[%clk 0:02:57]}  Qe6 {[%clk 0:02:13]} 21. Bf4 {[%clk 0:02:56]}  b5 {[%clk 0:02:08]} 22. Rh1 {[%clk 0:02:55]}  d4 {[%clk 0:02:01]} 23. Rh5 {[%clk 0:02:48]}  dxc3 {[%clk 0:02:00]} 24. bxc3 {[%clk 0:02:48]}  Rxd1 {[%clk 0:01:59]} 25. Qxd1 {[%clk 0:02:49]}  Rd8 {[%clk 0:01:58]} 26. Qe2 {[%clk 0:02:46]}  Qd5+ {[%clk 0:01:56]} 27. Kh2 {[%clk 0:02:46]}  Qd1 {[%clk 0:01:50]} 28. Qxd1 {[%clk 0:02:41]}  Rxd1 {[%clk 0:01:50]} 29. e6 {[%clk 0:02:41]}  fxe6 {[%clk 0:01:46]} 30. Be3 {[%clk 0:02:42]}  Rd5 {[%clk 0:01:44]} 31. Rh4 {[%clk 0:02:41]}  Bxh4 {[%clk 0:01:42]} 32. gxh4 {[%clk 0:02:41]}  Kf7 {[%clk 0:01:41]} 33. Kg3 {[%clk 0:02:39]}  Kf6 {[%clk 0:01:41]} 34. Kf4 {[%clk 0:02:38]}  g5+ {[%clk 0:01:41]} 35. hxg5+ {[%clk 0:02:39]}  hxg5+ {[%clk 0:01:41]} 36. Ke4 {[%clk 0:02:40]}  Re5+ {[%clk 0:01:39]} 37. Kd3 {[%clk 0:02:41]}  c4+ {[%clk 0:01:38]} 38. Kd4 {[%clk 0:02:41]}  Kf5 {[%clk 0:01:33]} 39. Bc1 {[%clk 0:02:40]}  Rd5+ {[%clk 0:01:32]} 40. Ke3 {[%clk 0:02:40]}  Rd1 {[%clk 0:01:30]} 41. Ke2 {[%clk 0:02:37]}  Rxc1 {[%clk 0:01:29]} 0-1


[Site "https://www.chess.com"]

[Event "Titled Tuesday Blitz August 15 Early 2023"]
[White "Goltsev, Dmitry"]
[Black "Vachier-Lagrave, Maxime"]
[WhiteFideId "24176710"]
[BlackFideId "623539"]
[WhiteElo "2629"]
[BlackElo "3140"]
[Result "1/2-1/2"]
[Round "2"]
[TimeControl "180+1"]
[Date "2023.08.15"]
[WhiteClock "0:00:05"]
[BlackClock "0:00:06"]
[Board "2"]

1. e4 {[%clk 0:02:59]}  c5 {[%clk 0:02:59]} 2. Nf3 {[%clk 0:03:00]}  Nc6 {[%clk 0:02:59]} 3. d4 {[%clk 0:03:00]}  cxd4 {[%clk 0:02:59]} 4. Nxd4 {[%clk 0:03:01]}  Nf6 {[%clk 0:03:00]} 5. Nc3 {[%clk 0:03:01]}  e6 {[%clk 0:03:01]} 6. Be2 {[%clk 0:03:00]}  Bb4 {[%clk 0:02:56]} 7. Qd3 {[%clk 0:02:59]}  d6 {[%clk 0:02:50]} 8. O-O {[%clk 0:02:55]}  O-O {[%clk 0:02:43]} 9. Bg5 {[%clk 0:02:49]}  Ne5 {[%clk 0:02:34]} 10. Qg3 {[%clk 0:02:45]}  Bxc3 {[%clk 0:02:33]} 11. Bxf6 {[%clk 0:02:44]}  Qxf6 {[%clk 0:02:33]} 12. Qxc3 {[%clk 0:02:44]}  Bd7 {[%clk 0:02:29]} 13. f4 {[%clk 0:02:42]}  Ng6 {[%clk 0:02:26]} 14. g3 {[%clk 0:02:38]}  Rac8 {[%clk 0:02:02]} 15. Qd2 {[%clk 0:02:33]}  e5 {[%clk 0:02:00]} 16. fxe5 {[%clk 0:02:25]}  Qxe5 {[%clk 0:02:01]} 17. Bf3 {[%clk 0:02:21]}  h5 {[%clk 0:01:44]} 18. c3 {[%clk 0:02:20]}  h4 {[%clk 0:01:45]} 19. Qf2 {[%clk 0:02:17]}  Qg5 {[%clk 0:01:42]} 20. Kh1 {[%clk 0:02:14]}  hxg3 {[%clk 0:01:39]} 21. Qxg3 {[%clk 0:02:15]}  Qxg3 {[%clk 0:01:39]} 22. hxg3 {[%clk 0:02:16]}  Rfd8 {[%clk 0:01:29]} 23. Rad1 {[%clk 0:02:14]}  Rc7 {[%clk 0:01:13]} 24. Kg2 {[%clk 0:01:59]}  Ne5 {[%clk 0:01:04]} 25. Be2 {[%clk 0:01:56]}  Bc6 {[%clk 0:00:54]} 26. Rf4 {[%clk 0:01:49]}  Re7 {[%clk 0:00:46]} 27. Nxc6 {[%clk 0:01:41]}  bxc6 {[%clk 0:00:47]} 28. Bd3 {[%clk 0:01:35]}  g6 {[%clk 0:00:44]} 29. b3 {[%clk 0:01:15]}  Kg7 {[%clk 0:00:44]} 30. Bc2 {[%clk 0:01:14]}  a5 {[%clk 0:00:40]} 31. Rf2 {[%clk 0:01:13]}  Ng4 {[%clk 0:00:39]} 32. Re2 {[%clk 0:01:11]}  d5 {[%clk 0:00:37]} 33. Kf3 {[%clk 0:01:06]}  Ne5+ {[%clk 0:00:31]} 34. Kg2 {[%clk 0:01:05]}  Nd7 {[%clk 0:00:28]} 35. Kf3 {[%clk 0:00:55]}  Nf6 {[%clk 0:00:29]} 36. exd5 {[%clk 0:00:53]}  Rxe2 {[%clk 0:00:28]} 37. Kxe2 {[%clk 0:00:54]}  Nxd5 {[%clk 0:00:29]} 38. Rd3 {[%clk 0:00:51]}  Rh8 {[%clk 0:00:28]} 39. Rf3 {[%clk 0:00:41]}  Rh2+ {[%clk 0:00:25]} 40. Kd1 {[%clk 0:00:42]}  Rh1+ {[%clk 0:00:21]} 41. Kd2 {[%clk 0:00:41]}  f5 {[%clk 0:00:21]} 42. a3 {[%clk 0:00:37]}  Ra1 {[%clk 0:00:20]} 43. c4 {[%clk 0:00:37]}  Nb6 {[%clk 0:00:18]} 44. Kc3 {[%clk 0:00:35]}  Rxa3 {[%clk 0:00:15]} 45. Rd3 {[%clk 0:00:24]}  Na4+ {[%clk 0:00:16]} 46. Kd2 {[%clk 0:00:21]}  Nc5 {[%clk 0:00:15]} 47. Re3 {[%clk 0:00:17]}  Kf6 {[%clk 0:00:15]} 48. Kc3 {[%clk 0:00:14]}  Ra1 {[%clk 0:00:14]} 49. Re8 {[%clk 0:00:12]}  Rg1 {[%clk 0:00:14]} 50. Rc8 {[%clk 0:00:12]}  Rxg3+ {[%clk 0:00:14]} 51. Kb2 {[%clk 0:00:12]}  Ke5 {[%clk 0:00:12]} 52. Rxc6 {[%clk 0:00:12]}  Ne6 {[%clk 0:00:09]} 53. Ra6 {[%clk 0:00:12]}  Nd4 {[%clk 0:00:09]} 54. Rxa5+ {[%clk 0:00:12]}  Kf4 {[%clk 0:00:09]} 55. Rd5 {[%clk 0:00:11]}  Ke3 {[%clk 0:00:09]} 56. Re5+ {[%clk 0:00:11]}  Kf4 {[%clk 0:00:09]} 57. Rd5 {[%clk 0:00:11]}  Ke3 {[%clk 0:00:05]} 58. Re5+ {[%clk 0:00:11]}  Kf2 {[%clk 0:00:06]} 59. Rd5 {[%clk 0:00:12]}  Rg4 {[%clk 0:00:06]} 60. b4 {[%clk 0:00:11]}  Nxc2 {[%clk 0:00:06]} 61. Rd2+ {[%clk 0:00:10]}  Ke3 {[%clk 0:00:05]} 62. Rxc2 {[%clk 0:00:11]}  Rd4 {[%clk 0:00:04]} 63. b5 {[%clk 0:00:11]}  f4 {[%clk 0:00:05]} 64. b6 {[%clk 0:00:11]}  Rd8 {[%clk 0:00:05]} 65. c5 {[%clk 0:00:11]}  Rb8 {[%clk 0:00:05]} 66. Kc3 {[%clk 0:00:11]}  f3 {[%clk 0:00:05]} 67. Kc4 {[%clk 0:00:11]}  g5 {[%clk 0:00:05]} 68. Kb5 {[%clk 0:00:10]}  g4 {[%clk 0:00:05]} 69. c6 {[%clk 0:00:11]}  g3 {[%clk 0:00:06]} 70. c7 {[%clk 0:00:11]}  Rf8 {[%clk 0:00:06]} 71. b7 {[%clk 0:00:11]}  f2 {[%clk 0:00:07]} 72. Rc1 {[%clk 0:00:11]}  g2 {[%clk 0:00:07]} 73. c8=Q {[%clk 0:00:11]}  f1=Q+ {[%clk 0:00:08]} 74. Kb6 {[%clk 0:00:08]}  Qf6+ {[%clk 0:00:07]} 75. Rc6 {[%clk 0:00:07]}  Qd4+ {[%clk 0:00:07]} 76. Ka6 {[%clk 0:00:06]}  Rxc8 {[%clk 0:00:05]} 77. bxc8=Q {[%clk 0:00:07]}  g1=Q {[%clk 0:00:06]} 78. Qe6+ {[%clk 0:00:07]}  Kf3 {[%clk 0:00:03]} 79. Qf5+ {[%clk 0:00:07]}  Ke3 {[%clk 0:00:03]} 80. Qe6+ {[%clk 0:00:07]}  Kd2 {[%clk 0:00:03]} 81. Qa2+ {[%clk 0:00:07]}  Kd3 {[%clk 0:00:04]} 82. Qb3+ {[%clk 0:00:07]}  Ke4 {[%clk 0:00:04]} 83. Qe6+ {[%clk 0:00:07]}  Kf4 {[%clk 0:00:04]} 84. Rc4 {[%clk 0:00:07]}  Qa1+ {[%clk 0:00:04]} 85. Kb7 {[%clk 0:00:06]}  Qa7+ {[%clk 0:00:04]} 86. Kc8 {[%clk 0:00:06]}  Qa8+ {[%clk 0:00:04]} 87. Kc7 {[%clk 0:00:05]}  Qa5+ {[%clk 0:00:04]} 88. Kc8 {[%clk 0:00:05]}  Qa8+ {[%clk 0:00:04]} 89. Kc7 {[%clk 0:00:05]}  Qa7+ {[%clk 0:00:04]} 90. Kc8 {[%clk 0:00:05]}  Qc5+ {[%clk 0:00:04]} 91. Rxc5 {[%clk 0:00:05]}  Qxc5+ {[%clk 0:00:05]} 92. Kd7 {[%clk 0:00:05]}  Qf5 {[%clk 0:00:05]} 93. Qxf5+ {[%clk 0:00:05]}  Kxf5 {[%clk 0:00:06]} 1/2-1/2


[Site "https://www.chess.com"]

[Event "Titled Tuesday Blitz August 15 Early 2023"]
[White "So, Wesley"]
[Black "Radzhabov, Rodion"]
[WhiteFideId "5202213"]
[BlackFideId "884715"]
[WhiteElo "3134"]
[BlackElo "2629"]
[Result "1-0"]
[Round "2"]
[TimeControl "180+1"]
[Date "2023.08.15"]
[WhiteClock "0:01:21"]
[BlackClock "0:00:01"]
[Board "3"]

1. b3 {[%clk 0:03:00]}  Nf6 {[%clk 0:02:55]} 2. Bb2 {[%clk 0:03:00]}  e6 {[%clk 0:02:52]} 3. e3 {[%clk 0:02:54]}  Be7 {[%clk 0:02:50]} 4. g4 {[%clk 0:02:53]}  h6 {[%clk 0:02:39]} 5. Nf3 {[%clk 0:02:50]}  b6 {[%clk 0:02:35]} 6. Rg1 {[%clk 0:02:47]}  Bb7 {[%clk 0:02:33]} 7. h4 {[%clk 0:02:47]}  c5 {[%clk 0:02:01]} 8. g5 {[%clk 0:02:46]}  hxg5 {[%clk 0:02:00]} 9. hxg5 {[%clk 0:02:47]}  Nh5 {[%clk 0:02:01]} 10. Be2 {[%clk 0:02:43]}  Nc6 {[%clk 0:01:50]} 11. Ne5 {[%clk 0:02:31]}  Nxe5 {[%clk 0:01:17]} 12. Bxe5 {[%clk 0:02:32]}  Bxg5 {[%clk 0:00:58]} 13. Bxh5 {[%clk 0:02:30]}  Bf6 {[%clk 0:00:57]} 14. Bxf6 {[%clk 0:02:24]}  Qxf6 {[%clk 0:00:54]} 15. Nc3 {[%clk 0:02:25]}  g6 {[%clk 0:00:50]} 16. Bg4 {[%clk 0:02:22]}  Rh2 {[%clk 0:00:47]} 17. Qe2 {[%clk 0:02:21]}  b5 {[%clk 0:00:43]} 18. O-O-O {[%clk 0:01:49]}  b4 {[%clk 0:00:39]} 19. Nb1 {[%clk 0:01:49]}  a5 {[%clk 0:00:19]} 20. Qb5 {[%clk 0:01:43]}  Bc6 {[%clk 0:00:19]} 21. Qxc5 {[%clk 0:01:44]}  a4 {[%clk 0:00:20]} 22. Qxb4 {[%clk 0:01:37]}  axb3 {[%clk 0:00:19]} 23. axb3 {[%clk 0:01:38]}  Ra2 {[%clk 0:00:12]} 24. Qc3 {[%clk 0:01:37]}  Qxf2 {[%clk 0:00:11]} 25. Bxe6 {[%clk 0:01:33]}  fxe6 {[%clk 0:00:09]} 26. Rxg6 {[%clk 0:01:29]}  Be4 {[%clk 0:00:05]} 27. Qc8+ {[%clk 0:01:23]}  Ke7 {[%clk 0:00:04]} 28. Rg7+ {[%clk 0:01:24]}  Kd6 {[%clk 0:00:04]} 29. Rxd7+ {[%clk 0:01:22]}  Ke5 {[%clk 0:00:04]} 30. Qc7+ {[%clk 0:01:20]}  Kf6 {[%clk 0:00:01]} 31. Rf7+ {[%clk 0:01:21]} 1-0


[Site "https://www.chess.com"]

[Event "Titled Tuesday Blitz August 15 Early 2023"]
[White "Firouzja, Alireza"]
[Black "Omorjan, Dejan"]
[WhiteFideId "12573981"]
[BlackFideId "955345"]
[WhiteElo "3091"]
[BlackElo "2627"]
[Result "1-0"]
[Round "2"]
[TimeControl "180+1"]
[Date "2023.08.15"]
[WhiteClock "0:01:43"]
[BlackClock "0:00:00"]
[Board "4"]

1. e4 {[%clk 0:03:00]}  c6 {[%clk 0:02:57]} 2. Nc3 {[%clk 0:02:53]}  d5 {[%clk 0:02:58]} 3. Qf3 {[%clk 0:02:53]}  e6 {[%clk 0:02:57]} 4. d4 {[%clk 0:02:53]}  dxe4 {[%clk 0:02:35]} 5. Nxe4 {[%clk 0:02:54]}  Nf6 {[%clk 0:02:35]} 6. Bd3 {[%clk 0:02:46]}  Nbd7 {[%clk 0:02:27]} 7. c3 {[%clk 0:02:31]}  Nxe4 {[%clk 0:02:23]} 8. Qxe4 {[%clk 0:02:32]}  c5 {[%clk 0:02:15]} 9. Nf3 {[%clk 0:02:20]}  cxd4 {[%clk 0:02:05]} 10. Qxd4 {[%clk 0:02:20]}  Nc5 {[%clk 0:01:51]} 11. Qxd8+ {[%clk 0:02:20]}  Kxd8 {[%clk 0:01:52]} 12. Bc2 {[%clk 0:02:21]}  f6 {[%clk 0:01:48]} 13. Be3 {[%clk 0:02:18]}  Ke8 {[%clk 0:01:43]} 14. O-O-O {[%clk 0:02:17]}  Bd7 {[%clk 0:01:34]} 15. Rhe1 {[%clk 0:02:17]}  Rc8 {[%clk 0:01:27]} 16. Nd4 {[%clk 0:02:04]}  Kf7 {[%clk 0:00:58]} 17. Nf5 {[%clk 0:01:54]}  Bc6 {[%clk 0:00:46]} 18. Nd6+ {[%clk 0:01:52]}  Bxd6 {[%clk 0:00:46]} 19. Rxd6 {[%clk 0:01:53]}  b6 {[%clk 0:00:41]} 20. Bxc5 {[%clk 0:01:51]}  bxc5 {[%clk 0:00:41]} 21. Rdxe6 {[%clk 0:01:51]}  Rc7 {[%clk 0:00:31]} 22. Bb3 {[%clk 0:01:48]}  c4 {[%clk 0:00:22]} 23. Bxc4 {[%clk 0:01:47]}  Kg6 {[%clk 0:00:18]} 24. g3 {[%clk 0:01:45]}  h5 {[%clk 0:00:16]} 25. Re7 {[%clk 0:01:45]}  Rhc8 {[%clk 0:00:15]} 26. Bd3+ {[%clk 0:01:45]}  Kh6 {[%clk 0:00:16]} 27. Bf5 {[%clk 0:01:45]}  Rxe7 {[%clk 0:00:11]} 28. Rxe7 {[%clk 0:01:46]}  Rd8 {[%clk 0:00:09]} 29. Rxa7 {[%clk 0:01:46]}  Bf3 {[%clk 0:00:09]} 30. Bc2 {[%clk 0:01:46]}  h4 {[%clk 0:00:09]} 31. Re7 {[%clk 0:01:45]}  h3 {[%clk 0:00:09]} 32. b4 {[%clk 0:01:45]}  Ra8 {[%clk 0:00:08]} 33. a4 {[%clk 0:01:45]}  Rc8 {[%clk 0:00:07]} 34. Re3 {[%clk 0:01:45]}  Bg2 {[%clk 0:00:07]} 35. b5 {[%clk 0:01:45]}  g6 {[%clk 0:00:05]} 36. Kb2 {[%clk 0:01:45]}  f5 {[%clk 0:00:05]} 37. Kb3 {[%clk 0:01:45]}  Rd8 {[%clk 0:00:06]} 38. Bd3 {[%clk 0:01:43]}  g5 {[%clk 0:00:04]} 39. Bxf5 {[%clk 0:01:43]}  Rd2 {[%clk 0:00:04]} 40. g4 {[%clk 0:01:43]}  Rxf2 {[%clk 0:00:03]} 41. Re7 {[%clk 0:01:43]}  Bd5+ {[%clk 0:00:02]} 42. c4 {[%clk 0:01:44]}  Rf3+ {[%clk 0:00:01]} 43. Kb4 {[%clk 0:01:44]}  Bg8 {[%clk 0:00:02]} 44. b6 {[%clk 0:01:44]}  Rf2 {[%clk 0:00:01]} 45. b7 {[%clk 0:01:44]}  Rxh2 {[%clk 0:00:00]} 46. Kc3 {[%clk 0:01:43]} 1-0


[Site "https://www.chess.com"]

[Event "Titled Tuesday Blitz August 15 Early 2023"]
[White "Bortnyk, Olexandr"]
[Black "Bodnaruk, Anastasia"]
[WhiteFideId "14120828"]
[BlackFideId "4181751"]
[WhiteElo "3081"]
[BlackElo "2622"]
[Result "1-0"]
[Round "2"]
[TimeControl "180+1"]
[Date "2023.08.15"]
[WhiteClock "0:00:56"]
[BlackClock "0:00:00"]
[Board "6"]

1. e4 {[%clk 0:02:56]}  c5 {[%clk 0:02:59]} 2. c3 {[%clk 0:02:56]}  Nf6 {[%clk 0:02:57]} 3. e5 {[%clk 0:02:55]}  Nd5 {[%clk 0:02:57]} 4. d4 {[%clk 0:02:56]}  cxd4 {[%clk 0:02:57]} 5. Nf3 {[%clk 0:02:56]}  Nc6 {[%clk 0:02:54]} 6. cxd4 {[%clk 0:02:55]}  d6 {[%clk 0:02:50]} 7. Bc4 {[%clk 0:02:55]}  Nb6 {[%clk 0:02:47]} 8. Bb5 {[%clk 0:02:55]}  dxe5 {[%clk 0:02:30]} 9. Nxe5 {[%clk 0:02:56]}  Bd7 {[%clk 0:02:30]} 10. Nxd7 {[%clk 0:02:56]}  Qxd7 {[%clk 0:02:31]} 11. Nc3 {[%clk 0:02:57]}  e6 {[%clk 0:02:31]} 12. O-O {[%clk 0:02:55]}  Rc8 {[%clk 0:02:28]} 13. Qg4 {[%clk 0:02:38]}  h5 {[%clk 0:02:25]} 14. Qh3 {[%clk 0:02:37]}  Qxd4 {[%clk 0:02:06]} 15. Rd1 {[%clk 0:02:26]}  Qg4 {[%clk 0:01:59]} 16. Qd3 {[%clk 0:02:26]}  Be7 {[%clk 0:01:53]} 17. h3 {[%clk 0:02:19]}  Qh4 {[%clk 0:01:36]} 18. Be3 {[%clk 0:02:09]}  O-O {[%clk 0:01:35]} 19. Qe2 {[%clk 0:01:52]}  g6 {[%clk 0:01:30]} 20. Bxc6 {[%clk 0:01:46]}  Rxc6 {[%clk 0:01:26]} 21. Rd4 {[%clk 0:01:47]}  Qf6 {[%clk 0:01:25]} 22. Rad1 {[%clk 0:01:47]}  e5 {[%clk 0:01:18]} 23. R4d3 {[%clk 0:01:40]}  Qf5 {[%clk 0:01:13]} 24. Bxb6 {[%clk 0:01:38]}  axb6 {[%clk 0:01:13]} 25. Rd7 {[%clk 0:01:31]}  Bc5 {[%clk 0:01:08]} 26. Rxb7 {[%clk 0:01:30]}  Bd4 {[%clk 0:01:01]} 27. Nd5 {[%clk 0:01:31]}  Re6 {[%clk 0:00:50]} 28. Ne7+ {[%clk 0:01:19]}  Rxe7 {[%clk 0:00:50]} 29. Rxe7 {[%clk 0:01:20]}  Rc8 {[%clk 0:00:51]} 30. Rd2 {[%clk 0:00:57]}  Rc1+ {[%clk 0:00:49]} 31. Kh2 {[%clk 0:00:57]}  Qb1 {[%clk 0:00:40]} 32. Qf3 {[%clk 0:00:56]}  Qxa2 {[%clk 0:00:00]} 33. b3 {[%clk 0:00:56]} 1-0


[Site "https://www.chess.com"]

[Event "Titled Tuesday Blitz August 15 Early 2023"]
[White "Bilan, Danila"]
[Black "Indjic, Aleksandar"]
[WhiteFideId "24161918"]
[BlackFideId "911925"]
[WhiteElo "2606"]
[BlackElo "3030"]
[Result "0-1"]
[Round "2"]
[TimeControl "180+1"]
[Date "2023.08.15"]
[WhiteClock "0:00:01"]
[BlackClock "0:01:33"]
[Board "10"]

1. d4 {[%clk 0:03:00]}  Nf6 {[%clk 0:02:56]} 2. Nf3 {[%clk 0:03:00]}  e6 {[%clk 0:02:57]} 3. Bg5 {[%clk 0:02:57]}  h6 {[%clk 0:02:56]} 4. Bh4 {[%clk 0:02:56]}  d6 {[%clk 0:02:54]} 5. e3 {[%clk 0:02:50]}  Nbd7 {[%clk 0:02:53]} 6. Nbd2 {[%clk 0:02:49]}  b6 {[%clk 0:02:51]} 7. Bd3 {[%clk 0:02:37]}  g5 {[%clk 0:02:49]} 8. Bg3 {[%clk 0:02:37]}  Nh5 {[%clk 0:02:50]} 9. c3 {[%clk 0:02:13]}  Bb7 {[%clk 0:02:46]} 10. a4 {[%clk 0:02:07]}  a6 {[%clk 0:02:46]} 11. e4 {[%clk 0:01:57]}  Bg7 {[%clk 0:02:45]} 12. Nf1 {[%clk 0:01:43]}  Qe7 {[%clk 0:02:44]} 13. Ne3 {[%clk 0:01:40]}  Nxg3 {[%clk 0:02:29]} 14. hxg3 {[%clk 0:01:39]}  h5 {[%clk 0:02:29]} 15. g4 {[%clk 0:01:28]}  hxg4 {[%clk 0:02:22]} 16. Rxh8+ {[%clk 0:01:28]}  Bxh8 {[%clk 0:02:22]} 17. Nxg4 {[%clk 0:01:27]}  f5 {[%clk 0:02:22]} 18. exf5 {[%clk 0:00:18]}  exf5+ {[%clk 0:02:18]} 19. Ne3 {[%clk 0:00:19]}  f4 {[%clk 0:02:18]} 20. Ne5 {[%clk 0:00:15]}  Nxe5 {[%clk 0:01:49]} 21. Nf5 {[%clk 0:00:10]}  Nxd3+ {[%clk 0:01:47]} 22. Kf1 {[%clk 0:00:09]}  Qe1+ {[%clk 0:01:33]} 23. Qxe1+ {[%clk 0:00:08]}  Nxe1 {[%clk 0:01:34]} 24. Rxe1+ {[%clk 0:00:09]}  Kf8 {[%clk 0:01:34]} 25. f3 {[%clk 0:00:01]}  Re8 {[%clk 0:01:33]} 0-1


[Site "https://www.chess.com"]